Workbook

Sheet Лист1
A1: Школа | C1: МБОУ СОШ №5 г.Сальска | F1: Согласовано: | G1: должность | H1: директор МБОУ СОШ №5 г.Сальска
A2: Типовое примерное меню приготавливаемых блюд | G2: фамилия | H2: Герасименко А. А.
A3: Возрастная категория | E3: 7-11 лет | G3: дата | H3: 30 | I3: 9 | J3: 2025
E4: =E4:E9 ->  | H4: день | I4: месяц | J4: год
A5: Неделя | B5: День недели | C5: Прием пищи | D5: Раздел меню | E5: Блюда | F5: Вес блюда, г | G5: Белки | H5: Жиры | I5: Углеводы | J5: Калорийность | K5: № рецептуры | L5: Цена
A6: 1 | B6: 1 | C6: Завтрак | D6: гор.блюдо | E6: Омлет натуральный | F6: 150 | G6: 12.68 | H6: 15.24 | I6: 25.45 | J6: 225.5 | K6: 340 | L6: 50.54
E7: Икра кабачковая | F7: 60 | G7: 2.2 | H7: 1.6 | I7: 11.04 | J7: 88.2 | K7: 57 | L7: 19.16
E8: Мармелад фруктово-ягодный | F8: 40 | G8: 2.6 | H8: 3.68 | I8: 12.86 | J8: 138.24 | L8: 13.2
D9: гор.напиток | E9: Чай с сахаром | F9: 212 | G9: 0.19 | H9: 0.04 | I9: 10.98 | J9: 43.9 | K9: 685 | L9: 3.3
D10: хлеб | E10: Хлеб пшеничный йодированный | F10: 40 | G10: 3.04 | H10: 0.32 | I10: 23.2 | J10: 104.5 | L10: 2.8
D14: итого | F14: =SUM(F6:F13) -> 502 | G14: =SUM(G6:G13) -> 20.71 | H14: =SUM(H6:H13) -> 20.88 | I14: =SUM(I6:I13) -> 83.53 | J14: =SUM(J6:J13) -> 600.34 | L14: =SUM(L6:L13) -> 89
A15: =A6 -> 1 | B15: =B6 -> 1 | C15: Обед | D15: 1 блюдо | E15: Суп картофельный с бобовыми (горохом) | F15: 200 | G15: 6.64 | H15: 4.58 | I15: 16.28 | J15: 133.14 | K15: 139 | L15: 19.3
D16: 2 блюдо | E16: Шницель рубленный из птицы, салат из белокочанной капусты | F16: 110 | G16: 8.7 | H16: 13.95 | I16: 10.26 | J16: 242.26 | K16: 451 | L16: 46.45
D17: гарнир | E17: Каша вязкая пшеничная | F17: 150 | G17: 4.3 | H17: 4.08 | I17: 25.18 | J17: 154.83 | K17: 510 | L17: 14.58
D19: напиток | E19: Компот из смеси сухофруктов | F19: 200 | G19: 0.47 | H19: 0 | I19: 19.78 | J19: 112.68 | K19: 639 | L19: 5.87
D20: хлеб бел. | E20: Хлеб пшеничный йодированный | F20: 40 | G20: 3.04 | H20: 0.32 | I20: 23.2 | J20: 104.5 | L20: 2.8
D25: итого | F25: =SUM(F15:F24) -> 700 | G25: =SUM(G15:G24) -> 23.15 | H25: =SUM(H15:H24) -> 22.93 | I25: =SUM(I15:I24) -> 94.7 | J25: =SUM(J15:J24) -> 747.41 | L25: =SUM(L15:L24) -> 89
A26: =A6 -> 1 | B26: =B6 -> 1 | C26: Итого за день: | F26: =F14+F25 -> 1202 | G26: =G14+G25 -> 43.86 | H26: =H14+H25 -> 43.81 | I26: =I14+I25 -> 178.23 | J26: =J14+J25 -> 1347.75 | L26: =L14+L25 -> 178
A27: 1 | B27: 2 | C27: Завтрак | D27: гор.блюдо | E27: Тефтели из птицы с соусом | F27: 160 | G27: 11.56 | H27: 12.69 | I27: 15.48 | J27: 177.47 | K27: 462 | L27: 44.87
E28: Макаронные изделия отварные | F28: 150 | G28: 4.32 | H28: 5.86 | I28: 32.8 | J28: 219.5 | K28: 332 | L28: 18.91
E29: Овощи соленые (огурцы) | F29: 45 | G29: 0.6 | H29: 0.07 | I29: 2.1 | J29: 11.25 | L29: 15.47
D30: гор.напиток | E30: Чай с лимоном | F30: 219 | G30: 0.3 | H30: 0.05 | I30: 5.2 | J30: 60 | K30: 686 | L30: 6.95
D31: хлеб | E31: Хлеб пшеничный йодированный | F31: 40 | G31: 3.04 | H31: 0.32 | I31: 23.2 | J31: 104.5 | L31: 2.8
D35: итого | F35: =SUM(F27:F34) -> 614 | G35: =SUM(G27:G34) -> 19.82 | H35: =SUM(H27:H34) -> 18.99 | I35: =SUM(I27:I34) -> 78.78 | J35: =SUM(J27:J34) -> 572.72 | L35: =SUM(L27:L34) -> 89
A36: =A27 -> 1 | B36: =B27 -> 2 | C36: Обед | D36: 1 блюдо | E36: Суп картофельный с яйцом (кудрявый) | F36: 200 | G36: 7.02 | H36: 9.21 | I36: 12.84 | J36: 126.07 | K36: 140 | L36: 20.46
D37: 2 блюдо | E37: Плов из птицы | F37: 220 | G37: 16.97 | H37: 18.3 | I37: 52.06 | J37: 368.7 | K37: 54-12м | L37: 54.08
E38: Свекла отварная дольками | F38: 50 | G38: 0.75 | H38: 0.08 | I38: 4.33 | J38: 41.83 | K38: 54-28 | L38: 5.79
D39: напиток | E39: Компот из смеси сухофруктов | F39: 200 | G39: 0.47 | H39: 0 | I39: 19.78 | J39: 112.68 | K39: 639 | L39: 5.87
D40: хлеб бел. | E40: Хлеб пшеничный йодированный | F40: 40 | G40: 3.04 | H40: 0.32 | I40: 23.2 | J40: 104.5 | L40: 2.8
D45: итого | F45: =SUM(F36:F44) -> 710 | G45: =SUM(G36:G44) -> 28.25 | H45: =SUM(H36:H44) -> 27.91 | I45: =SUM(I36:I44) -> 112.21 | J45: =SUM(J36:J44) -> 753.78 | L45: =SUM(L36:L44) -> 89
A46: =A27 -> 1 | B46: =B27 -> 2 | C46: Итого за день: | F46: =F35+F45 -> 1324 | G46: =G35+G45 -> 48.07 | H46: =H35+H45 -> 46.9 | I46: =I35+I45 -> 190.99 | J46: =J35+J45 -> 1326.5 | L46: =L35+L45 -> 178
A47: 1 | B47: 3 | C47: Завтрак | D47: гор.блюдо | E47: Каша жидкая молочная пшённая | F47: 200 | G47: 7.3 | H47: 6.5 | I47: 38.6 | J47: 274.9 | K47: 54-24 к | L47: 23.2
E48: Запеканка из творога с рисом и молоком сгущенным | F48: 140 | G48: 11.05 | H48: 12.2 | I48: 31.9 | J48: 268.8 | K48: 315 | L48: 61.98
D49: гор.напиток | E49: Кофейный напиток | F49: 200 | G49: 1.14 | H49: 0.66 | I49: 6.82 | J49: 37.8 | K49: 692 | L49: 3.82
D54: итого | F54: =SUM(F47:F53) -> 540 | G54: =SUM(G47:G53) -> 19.49 | H54: =SUM(H47:H53) -> 19.36 | I54: =SUM(I47:I53) -> 77.32 | J54: =SUM(J47:J53) -> 581.5 | L54: =SUM(L47:L53) -> 89
A55: =A47 -> 1 | B55: =B47 -> 3 | C55: Обед | D55: 1 блюдо | E55: Борщ с капустой и картофелем | F55: 200 | G55: 6.88 | H55: 7.16 | I55: 10.4 | J55: 175 | K55: 110 | L55: 20.39
D56: 2 блюдо | E56: Чахохбили | F56: 120 | G56: 7.49 | H56: 9.3 | I56: 6.14 | J56: 152.64 | K56: 491 | L56: 49.56
D57: гарнир | E57: Каша вязкая перловая | F57: 150 | G57: 4.43 | H57: 5.27 | I57: 30.49 | J57: 187.13 | K57: 510 | L57: 10.38
D58: напиток | E58: Компот из смеси сухофруктов | F58: 200 | G58: 0.47 | H58: 0 | I58: 19.78 | J58: 112.68 | K58: 639 | L58: 5.87
D59: хлеб бел. | E59: Хлеб пшеничный йодированный | F59: 40 | G59: 3.04 | H59: 0.32 | I59: 23.2 | J59: 104.5 | L59: 2.8
D65: итого | F65: =SUM(F55:F64) -> 710 | G65: =SUM(G55:G64) -> 22.31 | H65: =SUM(H55:H64) -> 22.05 | I65: =SUM(I55:I64) -> 90.01 | J65: =SUM(J55:J64) -> 731.95 | L65: =SUM(L55:L64) -> 89
A66: =A47 -> 1 | B66: =B47 -> 3 | C66: Итого за день: | F66: =F54+F65 -> 1250 | G66: =G54+G65 -> 41.8 | H66: =H54+H65 -> 41.41 | I66: =I54+I65 -> 167.33 | J66: =J54+J65 -> 1313.45 | L66: =L54+L65 -> 178
A67: 1 | B67: 4 | C67: Завтрак | D67: гор.блюдо | E67: Гуляш из птицы, каша вязкая пшеничная | F67: 240 | G67: 14.27 | H67: 14.98 | I67: 39.01 | J67: 352.94 | K67: 437, 510 | L67: 65.4
E69: Салат из квашеной капусты | F69: 50 | G69: 0.64 | H69: 2.56 | I69: 4.34 | J69: 12.2 | K69: 45 | L69: 17.5
D70: гор.напиток | E70: Чай с сахаром | F70: 212 | G70: 0.19 | H70: 0.04 | I70: 10.98 | J70: 43.9 | K70: 685 | L70: 3.3
D71: хлеб | E71: Хлеб пшеничный йодированный | F71: 40 | G71: 3.04 | H71: 0.32 | I71: 23.2 | J71: 104.5 | L71: 2.8
D74: итого | F74: =SUM(F67:F73) -> 542 | G74: =SUM(G67:G73) -> 18.14 | H74: =SUM(H67:H73) -> 17.9 | I74: =SUM(I67:I73) -> 77.53 | J74: =SUM(J67:J73) -> 513.54 | L74: =SUM(L67:L73) -> 89
A75: =A67 -> 1 | B75: =B67 -> 4 | C75: Обед | D75: 1 блюдо | E75: Суп картофельный с клецками | F75: 250 | G75: 4.52 | H75: 6.06 | I75: 26.75 | J75: 181.9 | K75: 155 | L75: 19.15
D76: 2 блюдо | E76: Биточки рубленые из птицы, соус томатный с овощами | F76: 100 | G76: 11.88 | H76: 13.02 | I76: 12.62 | J76: 190.37 | K76: 498, 588 | L76: 45.26
D77: гарнир | E77: Каша рассыпчатая гречневая | F77: 120 | G77: 6.37 | H77: 6.94 | I77: 28.14 | J77: 196.8 | K77: 508 | L77: 15.92
D79: напиток | E79: Компот из смеси сухофруктов | F79: 200 | G79: 0.47 | H79: 0 | I79: 19.78 | J79: 112.68 | K79: 639 | L79: 5.87
D80: хлеб бел. | E80: Хлеб пшеничный йодированный | F80: 40 | G80: 3.04 | H80: 0.32 | I80: 23.2 | J80: 104.5 | L80: 2.8
D84: итого | F84: =SUM(F75:F83) -> 710 | G84: =SUM(G75:G83) -> 26.28 | H84: =SUM(H75:H83) -> 26.34 | I84: =SUM(I75:I83) -> 110.49 | J84: =SUM(J75:J83) -> 786.25 | L84: =SUM(L75:L83) -> 89
A85: =A67 -> 1 | B85: =B67 -> 4 | C85: Итого за день: | F85: =F74+F84 -> 1252 | G85: =G74+G84 -> 44.42 | H85: =H74+H84 -> 44.24 | I85: =I74+I84 -> 188.02 | J85: =J74+J84 -> 1299.79 | L85: =L74+L84 -> 178
A86: 1 | B86: 5 | C86: Завтрак | D86: гор.блюдо | E86: Котлеты рубленые из птицы, пюре картофельное | F86: 240 | G86: 16.34 | H86: 19.23 | I86: 43.16 | J86: 428.78 | K86: 498, 520 | L86: 71.63
E88: Овощи соленые (огурцы) | F88: 30 | G88: 0.4 | H88: 0.05 | I88: 1.4 | J88: 7.5 | L88: 11.27
D89: гор.напиток | E89: Чай с сахаром | F89: 212 | G89: 0.19 | H89: 0.04 | I89: 10.98 | J89: 43.9 | K89: 685 | L89: 3.3
D90: хлеб | E90: Хлеб пшеничный йодированный | F90: 40 | G90: 3.04 | H90: 0.32 | I90: 23.2 | J90: 104.5 | L90: 2.8
D93: итого | F93: =SUM(F86:F92) -> 522 | G93: =SUM(G86:G92) -> 19.97 | H93: =SUM(H86:H92) -> 19.64 | I93: =SUM(I86:I92) -> 78.74 | J93: =SUM(J86:J92) -> 584.68 | L93: =SUM(L86:L92) -> 89
A94: =A86 -> 1 | B94: =B86 -> 5 | C94: Обед | D94: 1 блюдо | E94: Суп картофельный с крупой (рисовая) | F94: 200 | G94: 5.26 | H94: 4.63 | I94: 21.49 | J94: 153.34 | K94: 138 | L94: 15.66
D95: 2 блюдо | E95: Паста "Альфредо" | F95: 210 | G95: 12.68 | H95: 16.72 | I95: 22.31 | J95: 306.96 | K95: 455 | L95: 52.34
D96: гарнир
D97: закуска
D98: напиток | E98: Компот из смеси сухофруктов | F98: 200 | G98: 0.47 | H98: 0 | I98: 19.78 | J98: 112.68 | K98: 639 | L98: 5.87
D99: хлеб бел. | E99: Хлеб пшеничный йодированный | F99: 40 | G99: 3.04 | H99: 0.32 | I99: 23.2 | J99: 104.5 | L99: 2.8
E100: Винегрет овощной | F100: 50 | G100: 0.59 | H100: 0.89 | I100: 3.34 | J100: 55.93 | K100: 71 | L100: 12.33
D103: итого | F103: =SUM(F94:F102) -> 700 | G103: =SUM(G94:G102) -> 22.04 | H103: =SUM(H94:H102) -> 22.56 | I103: =SUM(I94:I102) -> 90.12 | J103: =SUM(J94:J102) -> 733.41 | L103: =SUM(L94:L102) -> 89
A104: =A86 -> 1 | B104: =B86 -> 5 | C104: Итого за день: | F104: =F93+F103 -> 1222 | G104: =G93+G103 -> 42.01 | H104: =H93+H103 -> 42.2 | I104: =I93+I103 -> 168.86 | J104: =J93+J103 -> 1318.09 | L104: =L93+L103 -> 178
A105: 2 | B105: 1 | C105: Завтрак | D105: гор.блюдо | E105: Плов из птицы | F105: 200 | G105: 13.73 | H105: 7.04 | I105: 31.34 | J105: 248.61 | K105: 54-12м | L105: 49.12
E106: Салат из белокочанной капусты | F106: 35 | G106: 0.88 | H106: 4.03 | I106: 3.64 | J106: 49.99 | K106: 43 | L106: 4.78
D107: гор.напиток | E107: Чай с сахаром | F107: 212 | G107: 0.19 | H107: 0.04 | I107: 10.98 | J107: 43.9 | K107: 685 | L107: 3.3
D108: хлеб | E108: Хлеб пшеничный йодированный | F108: 40 | G108: 3.04 | H108: 0.32 | I108: 23.2 | J108: 104.5 | L108: 2.8
E109: Маффины сливочные | F109: 50 | G109: 3.84 | H109: 10.42 | I109: 20.65 | J109: 152.97 | L109: 29
D112: итого | F112: =SUM(F105:F111) -> 537 | G112: =SUM(G105:G111) -> 21.68 | H112: =SUM(H105:H111) -> 21.85 | I112: =SUM(I105:I111) -> 89.81 | J112: =SUM(J105:J111) -> 599.97 | L112: =SUM(L105:L111) -> 89
A113: =A105 -> 2 | B113: =B105 -> 1 | C113: Обед | D113: 1 блюдо | E113: Суп картофельный с бобовыми (горохом) | F113: 250 | G113: 8.38 | H113: 5.73 | I113: 20.35 | J113: 186.33 | K113: 139 | L113: 24.13
D114: 2 блюдо | E114: Рагу из мяса птицы | F114: 230 | G114: 10.69 | H114: 16.24 | I114: 27.14 | J114: 284.07 | K114: 436 | L114: 56.2
D115: напиток | E115: Компот из смеси сухофруктов | F115: 200 | G115: 0.47 | H115: 0 | I115: 19.78 | J115: 112.68 | K115: 639 | L115: 5.87
D116: хлеб бел. | E116: Хлеб пшеничный йодированный | F116: 40 | G116: 3.04 | H116: 0.32 | I116: 23.2 | J116: 104.5 | L116: 2.8
D122: итого | F122: =SUM(F113:F121) -> 720 | G122: =SUM(G113:G121) -> 22.58 | H122: =SUM(H113:H121) -> 22.29 | I122: =SUM(I113:I121) -> 90.47 | J122: =SUM(J113:J121) -> 687.58 | L122: =SUM(L113:L121) -> 89
A123: =A105 -> 2 | B123: =B105 -> 1 | C123: Итого за день: | F123: =F112+F122 -> 1257 | G123: =G112+G122 -> 44.26 | H123: =H112+H122 -> 44.14 | I123: =I112+I122 -> 180.28 | J123: =J112+J122 -> 1287.55 | L123: =L112+L122 -> 178
A124: 2 | B124: 2 | C124: Завтрак | D124: гор.блюдо | E124: Котлеты мясо-картофельные по-хлыновски, макаронные изделия отварные | F124: 240 | G124: 13.48 | H124: 16.1 | I124: 43.47 | J124: 378.96 | K124: 454, 332 | L124: 64.51
E126: Салат из квашеной капусты | F126: 35 | G126: 0.45 | H126: 1.79 | I126: 3.04 | J126: 8.54 | K126: 45 | L126: 12.28
D127: гор.напиток | E127: Кофейный напиток на молоке сгущенном | F127: 200 | G127: 3.87 | H127: 3.48 | I127: 15.2 | J127: 91.2 | K127: 690 | L127: 8.8
D128: хлеб | E128: Хлеб пшеничный йодированный | F128: 45 | G128: 3.42 | H128: 0.36 | I128: 26.1 | J128: 117.56 | L128: 3.41
D133: итого | F133: =SUM(F124:F132) -> 520 | G133: =SUM(G124:G132) -> 21.22 | H133: =SUM(H124:H132) -> 21.73 | I133: =SUM(I124:I132) -> 87.81 | J133: =SUM(J124:J132) -> 596.26 | L133: =SUM(L124:L132) -> 89
A134: =A124 -> 2 | B134: =B124 -> 2 | C134: Обед | D134: 1 блюдо | E134: Суп картофельный с крупой (пшено) | F134: 200 | G134: 4.93 | H134: 6.33 | I134: 21.22 | J134: 176.88 | K134: 138 | L134: 19.58
D135: 2 блюдо | E135: Фрикадельки из птицы, тушеные в соусе | F135: 100 | G135: 12.27 | H135: 12.11 | I135: 5.06 | J135: 183.4 | K135: 471 | L135: 44.02
D136: гарнир | E136: Рис припущенный | F136: 150 | G136: 3.46 | H136: 4.8 | I136: 34.96 | J136: 196.9 | K136: 512 | L136: 19.3
D137: напиток | E137: Чай с сахаром | F137: 212 | G137: 0.19 | H137: 0.04 | I137: 10.98 | J137: 43.9 | K137: 685 | L137: 3.3
D138: хлеб бел. | E138: Хлеб пшеничный йодированный | F138: 40 | G138: 3.04 | H138: 0.32 | I138: 23.2 | J138: 104.5 | L138: 2.8
D143: итого | F143: =SUM(F134:F142) -> 702 | G143: =SUM(G134:G142) -> 23.89 | H143: =SUM(H134:H142) -> 23.6 | I143: =SUM(I134:I142) -> 95.42 | J143: =SUM(J134:J142) -> 705.58 | L143: =SUM(L134:L142) -> 89
A144: =A124 -> 2 | B144: =B124 -> 2 | C144: Итого за день: | F144: =F133+F143 -> 1222 | G144: =G133+G143 -> 45.11 | H144: =H133+H143 -> 45.33 | I144: =I133+I143 -> 183.23 | J144: =J133+J143 -> 1301.84 | L144: =L133+L143 -> 178
A145: 2 | B145: 3 | C145: Завтрак | D145: гор.блюдо | E145: Каша вязкая молочная "Дружба" | F145: 200 | G145: 9.06 | H145: 6.88 | I145: 28 | J145: 238 | K145: 302 | L145: 27.4
E146: Булочка "Абрикосовый аромат" | F146: 70 | G146: 8.6 | H146: 10.4 | I146: 30.8 | J146: 237 | L146: 31
D147: гор.напиток | E147: Чай с сахаром | F147: 212 | G147: 0.19 | H147: 0.04 | I147: 10.98 | J147: 43.9 | K147: 685 | L147: 3.3
E148: Фрукты свежие (яблоки) | F148: 150 | G148: 0.6 | H148: 0.6 | I148: 3.08 | J148: 65.53 | K148: 386 | L148: 27.3
D152: итого | F152: =SUM(F145:F151) -> 632 | G152: =SUM(G145:G151) -> 18.45 | H152: =SUM(H145:H151) -> 17.92 | I152: =SUM(I145:I151) -> 72.86 | J152: =SUM(J145:J151) -> 584.43 | L152: =SUM(L145:L151) -> 89
A153: =A145 -> 2 | B153: =B145 -> 3 | C153: Обед | D153: 1 блюдо | E153: Борщ с капустой и картофелем | F153: 200 | G153: 6.88 | H153: 7.61 | I153: 10.4 | J153: 175 | K153: 110 | L153: 20.39
D154: 2 блюдо | E154: Чахохбили | F154: 110 | G154: 6.37 | H154: 8.59 | I154: 5.63 | J154: 139.92 | K154: 491 | L154: 45.36
D155: гарнир | E155: Каша вязкая пшеничная | F155: 150 | G155: 4.3 | H155: 4.08 | I155: 25.18 | J155: 154.83 | K155: 510 | L155: 14.58
D156: напиток | E156: Компот из смеси сухофруктов | F156: 200 | G156: 0.47 | H156: 0 | I156: 19.78 | J156: 112.68 | K156: 639 | L156: 5.87
D157: хлеб бел. | E157: Хлеб пшеничный йодированный | F157: 40 | G157: 3.04 | H157: 0.32 | I157: 23.2 | J157: 104.5 | L157: 2.8
D162: итого | F162: =SUM(F153:F161) -> 700 | G162: =SUM(G153:G161) -> 21.06 | H162: =SUM(H153:H161) -> 20.6 | I162: =SUM(I153:I161) -> 84.19 | J162: =SUM(J153:J161) -> 686.93 | L162: =SUM(L153:L161) -> 89
A163: =A145 -> 2 | B163: =B145 -> 3 | C163: Итого за день: | F163: =F152+F162 -> 1332 | G163: =G152+G162 -> 39.51 | H163: =H152+H162 -> 38.52 | I163: =I152+I162 -> 157.05 | J163: =J152+J162 -> 1271.36 | L163: =L152+L162 -> 178
A164: 2 | B164: 4 | C164: Завтрак | D164: гор.блюдо | E164: Ёжики из птицы, каша рассыпчатая гречневая | F164: 270 | G164: 17.52 | H164: 21.37 | I164: 41.66 | J164: 427.5 | K164: 54-15М, 508 | L164: 78.35
D166: гор.напиток | E166: Чай с сахаром | F166: 212 | G166: 0.19 | H166: 0.04 | I166: 10.98 | J166: 43.9 | K166: 685 | L166: 3.3
D168: хлеб | E168: Хлеб пшеничный йодированный | F168: 40 | G168: 3.04 | H168: 0.32 | I168: 23.2 | J168: 104.5 | L168: 2.8
E169: Свекла отварная дольками | F169: 30 | G169: 0.45 | H169: 0.05 | I169: 8.6 | J169: 25.1 | K169: 54-28 | L169: 4.55
D171: итого | F171: =SUM(F164:F170) -> 552 | G171: =SUM(G164:G170) -> 21.2 | H171: =SUM(H164:H170) -> 21.78 | I171: =SUM(I164:I170) -> 84.44 | J171: =SUM(J164:J170) -> 601 | L171: =SUM(L164:L170) -> 89
A172: =A164 -> 2 | B172: =B164 -> 4 | C172: Обед | D172: 1 блюдо | E172: Суп картофельный с клецками | F172: 200 | G172: 3.62 | H172: 4.85 | I172: 21.4 | J172: 145.52 | K172: 155 | L172: 15.32
D173: 2 блюдо | E173: Плов из птицы | F173: 250 | G173: 15.8 | H173: 14.51 | I173: 26.07 | J173: 310.76 | K173: 54-12м | L173: 60.91
E174: Салат из белокочанной капусты | F174: 30 | G174: 0.75 | H174: 3.45 | I174: 3.12 | J174: 42.85 | K174: 43 | L174: 4.1
D175: напиток | E175: Компот из смеси сухофруктов | F175: 200 | G175: 0.47 | H175: 0 | I175: 19.78 | J175: 112.68 | K175: 639 | L175: 5.87
D176: хлеб бел. | E176: Хлеб пшеничный йодированный | F176: 40 | G176: 3.04 | H176: 0.32 | I176: 23.2 | J176: 104.5 | L176: 2.8
D181: итого | F181: =SUM(F172:F180) -> 720 | G181: =SUM(G172:G180) -> 23.68 | H181: =SUM(H172:H180) -> 23.13 | I181: =SUM(I172:I180) -> 93.57 | J181: =SUM(J172:J180) -> 716.31 | L181: =SUM(L172:L180) -> 89
A182: =A164 -> 2 | B182: =B164 -> 4 | C182: Итого за день: | F182: =F171+F181 -> 1272 | G182: =G171+G181 -> 44.88 | H182: =H171+H181 -> 44.91 | I182: =I171+I181 -> 178.01 | J182: =J171+J181 -> 1317.31 | L182: =L171+L181 -> 178
A183: 2 | B183: 5 | C183: Завтрак | D183: гор.блюдо | E183: Рыба, тушеная в томате с овощами (филе), пюре картофельное | F183: 270 | G183: 16.46 | H183: 19.51 | I183: 48.37 | J183: 415.6 | K183: 374, 520 | L183: 71.63
E185: Овощи соленые (огурцы) | F185: 30 | G185: 0.4 | H185: 0.05 | I185: 1.4 | J185: 7.5 | L185: 11.27
D186: гор.напиток | E186: Чай с сахаром | F186: 212 | G186: 0.19 | H186: 0.04 | I186: 6.42 | J186: 43.9 | K186: 54-2 гн | L186: 3.3
D187: хлеб | E187: Хлеб пшеничный йодированный | F187: 40 | G187: 3.04 | H187: 0.32 | I187: 23.2 | J187: 104.5 | L187: 2.8
D190: итого | F190: =SUM(F183:F189) -> 552 | G190: =SUM(G183:G189) -> 20.09 | H190: =SUM(H183:H189) -> 19.92 | I190: =SUM(I183:I189) -> 79.39 | J190: =SUM(J183:J189) -> 571.5 | L190: =SUM(L183:L189) -> 89
A191: =A183 -> 2 | B191: =B183 -> 5 | C191: Обед | D191: 1 блюдо | E191: Свекольник со сметаной | F191: 200 | G191: 5 | H191: 7.08 | I191: 13.06 | J191: 178.7 | K191: 54-18 с | L191: 18.29
D192: 2 блюдо | E192: Котлеты рубленые из птицы, соус томатный с овощами | F192: 100 | G192: 11.88 | H192: 11.54 | I192: 18.49 | J192: 169.09 | K192: 498, 588 | L192: 45.7
D193: гарнир | E193: Макаронные изделия отварные | F193: 150 | G193: 4.32 | H193: 5.86 | I193: 32.8 | J193: 219.5 | K193: 332 | L193: 18.91
D195: напиток | E195: Чай с сахаром | F195: 212 | G195: 0.19 | H195: 0.04 | I195: 10.98 | J195: 43.9 | K195: 685 | L195: 3.3
D196: хлеб бел. | E196: Хлеб пшеничный йодированный | F196: 40 | G196: 3.04 | H196: 0.32 | I196: 23.2 | J196: 104.5 | L196: 2.8
D200: итого | F200: =SUM(F191:F199) -> 702 | G200: =SUM(G191:G199) -> 24.43 | H200: =SUM(H191:H199) -> 24.84 | I200: =SUM(I191:I199) -> 98.53 | J200: =SUM(J191:J199) -> 715.69 | L200: =SUM(L191:L199) -> 89
A201: =A183 -> 2 | B201: =B183 -> 5 | C201: Итого за день: | F201: =F190+F200 -> 1254 | G201: =G190+G200 -> 44.52 | H201: =H190+H200 -> 44.76 | I201: =I190+I200 -> 177.92 | J201: =J190+J200 -> 1287.19 | L201: =L190+L200 -> 178
C202: Среднее значение за период: | F202: =(F26+F46+F66+F85+F104+F123+F144+F163+F182+F201)/(IF(F26=0, 0, 1)+IF(F46=0, 0, 1)+IF(F66=0, 0, 1)+IF(F85=0, 0, 1)+IF(F104=0, 0, 1)+IF(F123=0, 0, 1)+IF(F144=0, 0, 1)+IF(F163=0, 0, 1)+IF(F182=0, 0, 1)+IF(F201=0, 0, 1)) -> 1258.7 | G202: =(G26+G46+G66+G85+G104+G123+G144+G163+G182+G201)/(IF(G26=0, 0, 1)+IF(G46=0, 0, 1)+IF(G66=0, 0, 1)+IF(G85=0, 0, 1)+IF(G104=0, 0, 1)+IF(G123=0, 0, 1)+IF(G144=0, 0, 1)+IF(G163=0, 0, 1)+IF(G182=0, 0, 1)+IF(G201=0, 0, 1)) -> 43.844 | H202: =(H26+H46+H66+H85+H104+H123+H144+H163+H182+H201)/(IF(H26=0, 0, 1)+IF(H46=0, 0, 1)+IF(H66=0, 0, 1)+IF(H85=0, 0, 1)+IF(H104=0, 0, 1)+IF(H123=0, 0, 1)+IF(H144=0, 0, 1)+IF(H163=0, 0, 1)+IF(H182=0, 0, 1)+IF(H201=0, 0, 1)) -> 43.622 | I202: =(I26+I46+I66+I85+I104+I123+I144+I163+I182+I201)/(IF(I26=0, 0, 1)+IF(I46=0, 0, 1)+IF(I66=0, 0, 1)+IF(I85=0, 0, 1)+IF(I104=0, 0, 1)+IF(I123=0, 0, 1)+IF(I144=0, 0, 1)+IF(I163=0, 0, 1)+IF(I182=0, 0, 1)+IF(I201=0, 0, 1)) -> 176.992 | J202: =(J26+J46+J66+J85+J104+J123+J144+J163+J182+J201)/(IF(J26=0, 0, 1)+IF(J46=0, 0, 1)+IF(J66=0, 0, 1)+IF(J85=0, 0, 1)+IF(J104=0, 0, 1)+IF(J123=0, 0, 1)+IF(J144=0, 0, 1)+IF(J163=0, 0, 1)+IF(J182=0, 0, 1)+IF(J201=0, 0, 1)) -> 1307.083 | L202: =(L26+L46+L66+L85+L104+L123+L144+L163+L182+L201)/(IF(L26=0, 0, 1)+IF(L46=0, 0, 1)+IF(L66=0, 0, 1)+IF(L85=0, 0, 1)+IF(L104=0, 0, 1)+IF(L123=0, 0, 1)+IF(L144=0, 0, 1)+IF(L163=0, 0, 1)+IF(L182=0, 0, 1)+IF(L201=0, 0, 1)) -> 178
